bitfinex-derivatives/quotes_ETHF0:USTF0_20250926
["timestamp","ask_amount","ask_price","bid_price","bid_amount"]
[1758898996235,0.00294466,3939.8,3939.7,0.4345]
[1758898996429,0.10294748,3939.8,3939.7,0.4345]
[1758898996635,0.00294466,3939.8,3939.7,3.6423]
[1758898997243,1.32349,3941.0,3939.7,3.6423]
[1758898997244,0.4607,3941.1,3940.0,0.1856]
[1758898997440,0.10001047,3941.0,3940.2,3.2078]
[1758898997740,0.10001047,3940.9,3940.3,0.4345]
[1758898997945,0.45651,3940.3,3940.2,3.2078]
[1758898998134,0.10182087,3940.3,3939.7,3.2078]
[1758898998438,0.45655,3940.0,3939.8,0.267]
[1758898998642,0.45653,3940.2,3939.9,0.4345]
[1758898998831,0.0018104,3940.3,3940.1,3.6423]
[1758898999035,0.0018104,3940.3,3940.2,0.7015]
[1758899001645,0.45652,3940.2,3940.1,3.2078]
[1758899001849,0.45652,3940.2,3940.1,3.9093]
[1758899002342,0.4583304,3940.3,3940.2,0.4345]
[1758899002746,0.45658,3939.8,3939.7,3.6423]
[1758899002949,0.45658,3939.8,3939.7,3.9093]
[1758899003646,0.4607,3940.2,3939.7,3.9093]
[1758899003841,0.09982252,3940.1,3939.8,0.4345]
[1758899004148,0.4583204,3940.3,3940.0,0.1856]
[1758899004342,0.4583204,3940.3,3940.2,0.4345]
[1758899004543,0.0018104,3940.3,3940.2,0.4345]
[1758899004741,0.91722,3940.2,3940.1,0.267]
[1758899004947,0.91723,3940.2,3940.1,0.267]
[1758899005245,0.0018104,3940.3,3940.1,0.7015]
[1758899005444,0.0018104,3940.3,3940.2,0.4345]
[1758899006744,0.0018104,3940.3,3940.2,0.89102]
[1758899006941,3.2078,3941.9,3940.6,0.4345]
[1758899006942,3.6685,3941.9,3940.6,0.4345]
[1758899007249,3.6685,3941.9,3940.5,0.1856]
[1758899007250,0.45645,3940.8,3940.7,0.7015]
[1758899007646,0.91715,3940.8,3940.7,0.7015]
[1758899007944,0.91715,3940.8,3940.7,0.00267204]
[1758899007945,0.92025197,3940.8,3940.7,0.00267204]
[1758899008250,1.02009237,3940.8,3940.7,0.26967204]
[1758899008648,1.02009237,3940.8,3940.7,0.00267204]
[1758899008952,6.02009237,3940.8,3940.7,0.26967204]
[1758899009146,6.02009237,3940.8,3940.7,2.04e-06]
[1758899009447,1.02009237,3940.8,3940.7,0.26700204]
[1758899010352,6.02009237,3940.8,3940.7,0.26700204]
[1758899011452,6.02009237,3940.8,3940.7,2.04e-06]
[1758899011648,6.02009237,3940.8,3940.7,0.26700204]
[1758899011854,0.55939237,3940.8,3940.7,0.70150204]
[1758899012054,0.00310197,3940.8,3940.7,1.15796204]
[1758899012254,0.00310197,3940.8,3940.7,6.15796204]
[1758899012454,0.00310197,3940.8,3940.7,9.36576204]
[1758899013054,0.00310197,3940.8,3940.7,8.90930204]
[1758899013254,0.00310197,3940.8,3940.7,48.95076204]
[1758899015147,0.00310197,3940.8,3940.7,48.49430204]
[1758899015757,0.018,3941.5,3941.1,0.4345]
[1758899015959,0.018,3941.5,3941.3,0.4345]
[1758899016252,0.018,3941.5,3941.4,0.4345]
[1758899016450,3.2078,3942.0,3941.3,0.4345]
[1758899016650,0.45639,3941.3,3941.2,3.4748]
[1758899017057,0.45642,3941.1,3941.0,0.1856]
[1758899017354,0.45645,3940.8,3940.7,3.64230204]
[1758899017658,0.45645,3940.8,3940.7,3.90930204]
[1758899017857,1.59793,3941.5,3940.7,3.47480204]
[1758899018055,3.2078,3941.6,3940.7,3.47480204]
[1758899018364,0.45637,3941.5,3941.1,0.4597]
[1758899018555,0.45638,3941.4,3941.2,0.267]
[1758899018751,3.66417,3941.6,3941.2,0.267]
[1758899018955,0.00181758,3942.0,3941.6,0.4597]
[1758899019163,0.00181758,3942.0,3941.7,0.267]
[1758899019552,0.00181758,3942.0,3941.8,0.4597]
[1758899019855,0.45813758,3942.0,3941.8,0.4597]
[1758899020061,0.45632,3941.9,3941.8,0.4597]
[1758899020964,0.00181758,3942.0,3941.7,0.267]
[1758899021353,0.00181758,3942.0,3941.9,0.4597]
[1758899021556,0.00181758,3942.0,3941.9,40.0367]
[1758899022263,0.0074,3942.5,3942.1,0.4597]
[1758899022451,0.0074,3942.5,3942.3,0.4597]
[1758899022653,0.0074,3942.5,3942.3,0.91597]
[1758899022856,0.022,3942.9,3942.5,0.1766]
[1758899023059,0.45622,3942.8,3942.7,0.4597]
[1758899023264,0.45901267,3942.8,3942.7,0.4597]
[1758899023465,0.00279267,3942.8,3942.7,0.4597]
[1758899024460,0.00279267,3942.8,3942.7,40.2997]
[1758899025260,0.00279267,3942.8,3942.7,40.2977]
[1758899025966,0.00279267,3942.8,3942.7,0.7267]
[1758899026868,0.00279267,3942.8,3942.7,0.4597]
[1758899027160,0.00279267,3942.8,3942.7,0.7267]
[1758899027468,0.00279267,3942.8,3942.7,1.18293]
[1758899027859,3.2078,3944.0,3943.5,0.45614]
[1758899028161,0.45612,3943.7,3943.1,0.4597]
[1758899028355,0.45611,3943.8,3943.3,0.4597]
[1758899028559,0.45613,3943.6,3943.3,3.2078]
[1758899028764,0.457,3943.7,3943.3,3.2078]
[1758899028965,0.91314,3943.5,3943.3,0.00258287]
[1758899029164,0.457,3943.4,3943.3,0.00258287]
[1758899029463,0.45614,3943.5,3943.3,0.72928287]
[1758899029971,0.457,3943.4,3943.3,0.72928287]
[1758899030162,0.457,3943.4,3943.3,0.46228287]
[1758899030462,0.45613,3943.6,3943.3,0.26958287]
[1758899030666,0.45614,3943.5,3943.4,0.4597]
[1758899030858,0.55575032,3943.5,3943.4,0.4597]
[1758899031059,0.45966318,3943.7,3943.4,0.91585]
[1758899031269,0.09961127,3943.6,3943.5,0.45614]
[1758899031463,0.09961127,3943.6,3943.5,0.9033]
[1758899031661,0.45613,3943.6,3943.5,0.7267]
[1758899031971,0.91315,3943.4,3943.3,0.00258287]
[1758899032159,0.91315,3943.4,3943.3,0.26958287]
[1758899033258,0.09954137,3943.4,3943.3,0.72928287]
[1758899033459,0.45614,3943.5,3943.3,0.26958287]
[1758899033660,0.45878318,3943.7,3943.3,0.26958287]
[1758899033970,0.91315,3943.4,3943.3,0.00258287]
[1758899034164,0.91315,3943.4,3943.3,0.26958287]
[1758899034367,0.00266318,3943.7,3943.5,0.91584]
[1758899034667,0.00266318,3943.7,3943.6,0.91583]
[1758899034859,0.00266318,3943.7,3943.6,0.45613]
[1758899035067,0.00266318,3943.7,3943.6,0.91583]
[1758899035668,0.00266318,3943.7,3943.6,5.91583]
[1758899036067,0.00266318,3943.7,3943.6,0.91583]
[1758899036474,0.00266318,3943.7,3943.6,0.7267]
[1758899036674,0.00266318,3943.7,3943.6,1.18283]
[1758899037072,0.45878318,3943.7,3943.6,0.4597]
[1758899037277,0.91315,3943.4,3943.3,0.00258287]
[1758899037570,6.01263778,3943.4,3943.3,0.00258287]
[1758899037770,6.01263778,3943.4,3943.3,0.26958287]
[1758899037967,0.55563778,3943.4,3943.3,0.26958287]
[1758899038274,6.01263778,3943.4,3943.3,0.26958287]
[1758899039177,6.01263778,3943.4,3943.3,1.18544287]
[1758899039178,0.09948778,3943.4,3943.3,1.18544287]
[1758899039670,0.1806,3944.5,3944.4,0.4597]
[1758899039671,3.2078,3944.5,3944.4,0.4597]
[1758899039873,3.30742214,3944.5,3944.4,0.7267]
[1758899040279,0.09962214,3944.5,3944.4,0.7267]
[1758899040478,3.8454,3945.5,3944.9,0.45598]
[1758899040771,0.55558782,3945.4,3945.0,0.7267]
[1758899040976,0.09966782,3945.3,3945.0,0.72296]
[1758899041176,0.09966782,3945.2,3945.0,0.267]
[1758899041475,0.09966782,3945.1,3945.0,0.267]
[1758899041780,0.09966782,3945.1,3945.0,0.7267]
[1758899041983,0.09966782,3945.1,3945.0,0.9033]
[1758899042280,3.21028641,3945.5,3945.4,0.4597]
[1758899042468,3.30920561,3945.5,3945.4,0.7267]
[1758899043078,3.76620561,3945.5,3945.4,0.267]
[1758899043667,0.55840561,3945.5,3945.4,0.267]
[1758899043869,0.10140561,3945.5,3945.4,0.7267]
[1758899044078,0.00248641,3945.5,3945.4,0.7267]
[1758899044476,0.03714228,3945.5,3945.4,0.7267]
[1758899045990,0.03714228,3945.5,3945.4,40.2737]
[1758899047179,0.46,3947.2,3945.4,44.814]
[1758899047377,0.46,3947.2,3946.7,0.45576]
[1758899047378,0.09874045,3947.1,3946.7,0.45576]
[1758899047580,0.09874045,3947.1,3946.4,3.2078]
[1758899047581,0.09874045,3947.0,3946.8,0.7232]
[1758899047880,0.419,3947.1,3946.9,0.267]
[1758899048084,0.09874725,3947.0,3946.9,0.267]
[1758899048277,0.52068798,3947.0,3946.9,0.26966049]
[1758899048481,0.10168798,3947.0,3946.9,0.72586049]
[1758899049477,0.00294073,3947.0,3946.9,0.72586049]
[1758899049877,0.1806,3948.5,3947.5,0.1676]
[1758899049878,3.2078,3948.1,3947.5,0.1676]
[1758899050184,3.2078,3948.6,3947.8,0.4562]
[1758899050484,0.419,3948.4,3947.8,0.4562]
[1758899050681,0.45564,3947.9,3947.7,3.664]
[1758899050880,0.419,3947.6,3947.3,3.2078]
[1758899051181,0.45568,3947.5,3947.4,0.267]
[1758899051485,0.419,3947.4,3947.2,0.4562]
[1758899051982,0.419,3947.4,3947.3,0.4562]
[1758899052288,0.87472,3947.2,3946.9,39.99086049]
[1758899052582,0.419,3947.2,3947.0,0.267]
[1758899052779,0.87466,3947.7,3947.1,0.4562]
[1758899052979,0.00276241,3947.9,3947.1,0.4562]
[1758899053179,0.00276241,3947.9,3947.3,0.4562]
[1758899053389,0.00276241,3947.9,3947.5,0.1676]
[1758899053580,0.00276241,3947.9,3947.6,3.2078]
[1758899053878,0.45567,3947.6,3947.1,3.2078]
[1758899054091,0.00276241,3947.9,3947.3,0.4562]
[1758899054275,0.00276241,3947.9,3947.5,0.1676]
[1758899054471,0.00276241,3947.9,3947.6,0.7232]
[1758899054686,0.00276241,3947.9,3947.6,0.267]
[1758899055081,0.00276241,3947.9,3947.7,5.73707287]
[1758899055380,0.00276241,3947.9,3947.8,0.7232]
[1758899055978,0.00276241,3947.9,3947.6,39.526]
[1758899055979,0.45566,3947.7,3947.5,3.664]
[1758899056282,0.45565,3947.8,3947.6,0.267]
[1758899056584,0.45565,3947.8,3947.7,0.4562]
[1758899056782,0.45566,3947.6,3947.5,3.664]
[1758899056987,0.45566,3947.6,3947.5,0.4562]
[1758899057185,0.8747,3947.3,3947.1,3.2078]
[1758899057481,0.4557,3947.3,3947.1,3.2078]
[1758899057676,0.45572,3947.1,3946.9,0.00266049]
[1758899057879,0.87472,3947.1,3947.0,0.267]
[1758899058075,4.08252,3947.1,3946.9,0.00266049]
[1758899058274,3.66352,3947.1,3946.9,0.00266049]
[1758899058480,4.08252,3947.1,3947.0,0.267]
[1758899058682,0.419,3947.0,3946.9,0.00266049]
[1758899058879,0.5991,3947.0,3946.9,0.00266049]
[1758899059082,5.69731716,3947.0,3946.9,0.26966049]
[1758899059484,0.51721716,3947.0,3946.9,0.26966049]
[1758899060182,0.87485,3946.0,3945.8,3.2078]
[1758899060683,3.6268,3946.5,3945.9,0.267]
[1758899060880,0.09826072,3946.4,3945.9,0.267]
[1758899061085,3.3879,3947.0,3945.9,0.267]
[1758899061086,0.419,3946.9,3946.1,0.4562]
[1758899061291,0.87482,3946.3,3946.1,0.4562]
[1758899061586,0.87482,3946.3,3945.9,0.26997692]
[1758899061587,0.45582,3946.3,3946.0,0.91205]
[1758899061782,0.45582,3946.3,3945.9,0.26997692]
[1758899062084,3.3879,3947.0,3946.0,0.1676]
[1758899062284,0.55409566,3946.9,3946.6,0.4562]
[1758899062493,0.45575,3946.9,3946.7,0.267]
[1758899062690,0.45575,3946.9,3946.7,0.4562]
[1758899062887,0.45581,3946.4,3946.2,3.664]
[1758899063083,0.419,3946.3,3946.2,3.2078]
[1758899063289,0.45577,3946.7,3946.3,0.4562]
[1758899063590,0.45579,3946.5,3946.3,0.4562]
[1758899063783,0.419,3946.8,3946.2,3.4748]
[1758899063986,0.55420328,3946.7,3946.3,0.45581]
[1758899064182,0.09848211,3946.6,3946.5,0.4562]
[1758899064489,4.08254,3947.0,3946.7,0.4562]
[1758899064691,0.419,3946.8,3946.3,39.52]
[1758899064890,0.51752245,3946.7,3946.4,0.7232]
[1758899065194,0.87478,3946.6,3946.4,0.4562]
[1758899065389,0.419,3946.3,3946.2,3.2078]
[1758899065586,0.419,3946.3,3946.2,3.4748]
[1758899065889,0.87481,3946.3,3946.2,3.4748]
[1758899066089,0.87485,3946.0,3945.4,3.664]
[1758899066291,1.13969,3945.8,3945.0,3.2078]
[1758899066490,0.87494,3945.2,3945.1,0.267]
[1758899066791,0.419,3945.1,3945.0,3.2078]
[1758899066989,0.51756836,3945.1,3945.0,3.2078]
[1758899067189,0.52059719,3945.1,3945.0,3.47673069]
[1758899067386,0.10159719,3945.1,3945.0,3.93293069]
[1758899067890,0.00302883,3945.1,3945.0,3.93293069]
[1758899068087,0.00302883,3945.1,3945.0,4.10053069]
[1758899069492,3.2078,3946.4,3945.2,0.4562]
[1758899069688,0.09891505,3946.3,3946.2,0.4562]
[1758899069883,0.09891505,3946.3,3946.2,0.7232]
[1758899070492,0.10146173,3946.3,3946.2,0.7232]
[1758899070696,0.00254668,3946.3,3946.2,5.7232]
[1758899070891,0.00254668,3946.3,3946.2,0.4562]
[1758899071196,0.00254668,3946.3,3946.2,40.2472]
[1758899071681,0.00254668,3946.3,3946.2,45.2472]
[1758899072788,0.00254668,3946.3,3946.2,40.2462]
[1758899073098,0.00254668,3946.3,3946.2,0.7232]
[1758899073591,0.00254668,3946.3,3946.2,0.4562]
[1758899074091,0.00254668,3946.3,3946.2,0.7232]
[1758899074288,0.00254668,3946.3,3946.2,0.4562]
[1758899074492,0.419,3946.2,3946.1,3.2078]
[1758899074692,0.51601319,3946.2,3946.1,3.4748]
[1758899075684,0.97184319,3946.2,3946.1,3.4748]
[1758899075888,0.51601319,3946.2,3946.1,3.4748]
[1758899076084,0.09701319,3946.2,3946.1,4.38684]
[1758899076488,0.00254668,3946.3,3946.2,0.91203]
[1758899076690,0.00254668,3946.3,3946.2,0.4562]
[1758899076889,0.51853285,3946.3,3946.2,0.267]
[1758899077084,0.87483,3946.2,3946.1,3.2078]
[1758899077289,0.4559,3945.6,3945.3,3.2078]
[1758899077495,0.90732,3945.4,3945.3,3.2078]
[1758899077693,1.00424717,3945.4,3945.3,3.4748]
[1758899078091,0.54832717,3945.4,3945.3,3.93073]
[1758899078297,0.09692717,3945.4,3945.3,4.10063]
[1758899078592,1.00424717,3945.4,3945.3,3.4748]
[1758899078898,0.55284717,3945.4,3945.3,3.4748]
[1758899079098,0.55284717,3945.4,3945.3,4.36763]
[1758899079295,0.55284717,3945.4,3945.3,3.9117]
[1758899079500,1.00424717,3945.4,3945.3,3.4748]
[1758899079698,1.00424717,3945.4,3945.3,3.2078]
[1758899079894,1.00424717,3945.4,3945.3,0.267]
[1758899080099,5.55284717,3945.4,3945.1,0.45595]
[1758899080395,0.45584,3946.1,3945.6,0.45589]
[1758899080598,0.45587,3945.8,3945.7,0.7039]
[1758899080899,0.45591,3945.5,3945.2,3.6447]
[1758899081086,0.4514,3945.3,3945.2,3.2078]
[1758899081398,0.4514,3945.6,3945.2,3.4748]
[1758899081695,0.45592,3945.4,3945.3,0.4369]
[1758899081995,0.45586,3945.9,3945.3,0.4369]
[1758899082202,0.09685862,3945.8,3945.7,0.89278]
[1758899082402,0.09685862,3945.8,3945.7,1.15978]
[1758899082799,0.00254668,3946.3,3945.7,1.15978]
[1758899082800,0.00254668,3946.3,3946.0,0.45585]
[1758899083001,0.09688116,3946.2,3946.1,1.15974]
[1758899083296,0.55271116,3946.2,3946.1,0.7039]
[1758899083503,0.09688116,3946.2,3946.1,0.7039]
[1758899083687,0.09688116,3946.2,3945.7,3.2078]
[1758899083891,0.90727,3945.9,3945.8,0.267]
[1758899084095,0.4559,3945.6,3945.1,3.2078]
[1758899084395,3.21034668,3946.3,3945.5,3.3767]
[1758899084601,0.09691165,3946.2,3946.1,0.4369]
[1758899084796,0.09691165,3946.2,3946.1,1.15974]
[1758899085195,0.55274165,3946.2,3946.1,0.7039]
[1758899085497,0.45585,3946.0,3945.5,3.3767]
[1758899085700,0.4514,3946.0,3945.5,3.3767]
[1758899085998,0.45588,3945.8,3945.7,0.4369]
[1758899086197,0.54837161,3945.8,3945.7,0.267]
[1758899086394,0.45591,3945.5,3945.2,0.45594]
[1758899086601,0.90734,3945.2,3945.1,3.2078]
[1758899086796,1.00434553,3945.2,3945.1,3.4748]
[1758899088000,0.09700553,3945.2,3945.1,4.36765]
[1758899088596,0.55294553,3945.2,3945.1,3.9117]
[1758899088901,0.09700553,3945.2,3945.1,4.36765]
[1758899089600,0.45583,3946.2,3945.9,0.45585]
[1758899089900,0.00254668,3946.3,3946.1,0.45583]
[1758899090097,0.45835668,3946.3,3946.2,0.267]
[1758899090300,0.09967452,3946.3,3946.2,0.267]
[1758899090600,0.09967452,3946.3,3946.2,1.15973]
[1758899090805,0.55548452,3946.3,3946.2,0.7039]
[1758899091204,0.45585,3946.0,3945.9,3.2078]
[1758899091400,0.90725,3946.0,3945.9,3.4748]
[1758899091605,0.90725,3946.0,3945.9,3.2078]
[1758899091800,0.45583,3946.2,3946.1,0.4369]
[1758899092006,0.55295575,3946.2,3946.1,0.4369]
[1758899092299,1.00435575,3946.2,3946.1,0.7039]
[1758899092500,0.45587,3945.8,3945.7,0.4369]
[1758899092807,0.4559,3945.6,3945.5,3.6447]
[1758899093004,0.00254668,3946.3,3945.7,0.89278]
[1758899093205,0.09712394,3946.2,3945.9,0.4369]
[1758899093506,0.09712394,3946.1,3946.0,1.32865]
[1758899093806,0.45583,3946.2,3946.1,0.4369]
[1758899094005,0.55298835,3946.2,3946.1,0.4369]
[1758899094204,0.55298835,3946.2,3946.1,0.7039]
[1758899094403,1.00438835,3946.2,3946.1,0.7039]
[1758899095204,0.55298835,3946.2,3946.1,0.7039]
[1758899095401,0.45585,3946.0,3945.9,3.2078]
[1758899095603,0.45587,3945.9,3945.7,0.4369]
[1758899095906,0.45587,3945.9,3945.8,0.7029]
[1758899096101,0.45837668,3946.3,3946.0,0.45585]
[1758899096302,0.0971702,3946.2,3946.1,1.15874]
[1758899097101,0.0971702,3946.2,3946.1,0.45584]
[1758899097409,0.00254668,3946.3,3946.2,0.89273]
[1758899098011,0.00254668,3946.3,3946.2,0.4369]
[1758899098212,0.00254668,3946.3,3946.2,0.7029]
[1758899098409,0.00254668,3946.3,3946.2,1.15873]
[1758899098909,0.00254668,3946.3,3946.2,2.50792015]
[1758899101523,0.00254668,3946.3,3946.2,6.15873]
[1758899101821,3.2078,3947.9,3947.0,0.1689]
[1758899102014,0.09631649,3947.8,3947.5,0.45568]
[1758899102217,0.09631649,3947.7,3947.6,0.7029]
[1758899102514,0.45563,3947.9,3947.8,0.4369]
[1758899102713,0.5540637,3947.9,3947.8,0.70590007]
[1758899103113,0.0984337,3947.9,3947.8,1.16154007]
[1758899103718,0.00211121,3947.9,3947.8,1.16154007]
[1758899103916,0.00211121,3947.9,3947.8,4.36934007]
[1758899104620,3.2078,3949.3,3948.6,0.4369]
[1758899104808,0.09617325,3949.2,3948.7,0.72153]
[1758899105013,0.09617325,3949.1,3948.7,0.266]
[1758899105215,0.45548,3949.2,3948.8,0.4369]
[1758899105517,0.43020527,3949.2,3948.8,0.4101]
[1758899105721,0.45551,3949.0,3948.9,0.6761]
[1758899105916,0.45555,3948.6,3948.5,0.579]
[1758899106109,0.45555,3948.7,3948.4,3.2078]
[1758899106314,0.45555,3948.6,3948.5,0.4101]
[1758899106617,0.88401,3948.2,3948.0,3.6179]
[1758899106814,3.2078,3948.9,3948.2,0.4101]
[1758899106815,0.4284,3948.8,3948.2,0.4101]
[1758899107123,0.1649,3949.0,3948.2,0.4101]
[1758899107124,3.6362,3949.3,3948.5,0.1708]
[1758899107314,3.6362,3949.3,3948.6,0.6761]
[1758899107615,1.57188,3948.6,3947.8,0.00300007]
[1758899107811,0.433,3947.9,3947.8,0.00300007]
[1758899108007,0.433,3947.9,3947.8,0.26900007]
[1758899108211,0.45562,3948.0,3947.9,0.4216]
[1758899108415,0.45562,3948.0,3947.9,0.6876]
[1758899108620,0.88862,3948.0,3947.9,0.6876]
[1758899108918,0.45562,3948.0,3947.9,0.4216]
[1758899109122,0.433,3948.4,3948.0,0.4216]
[1758899109314,0.45561,3948.1,3948.0,0.4216]
[1758899109511,3.2078,3948.5,3947.9,0.266]
[1758899109819,0.168,3949.0,3947.9,0.266]
[1758899109820,0.45552,3948.9,3948.4,0.4216]
[1758899110019,3.2078,3949.0,3948.6,0.4216]
[1758899110215,0.45729527,3949.2,3948.5,0.89376]
[1758899110416,0.45729527,3949.2,3948.6,0.4216]
[1758899110719,0.45728527,3949.2,3948.6,0.4216]
[1758899111018,0.00180527,3949.2,3948.8,3.2078]
[1758899111221,0.43480527,3949.2,3948.9,0.6876]
[1758899111414,0.43480527,3949.2,3949.0,0.4216]
[1758899111721,0.43480527,3949.2,3949.1,0.4216]
[1758899111722,0.00180527,3949.2,3949.1,0.4216]
[1758899113213,0.00180527,3949.2,3949.1,0.6876]
[1758899113527,0.43480527,3949.2,3948.5,0.5938]
[1758899113716,0.88851,3949.0,3948.5,0.1722]
[1758899113915,0.43480527,3949.2,3948.6,0.72156]
[1758899114217,0.43480527,3949.2,3948.7,0.72154]
[1758899114418,0.43480527,3949.2,3948.8,0.4216]
[1758899114612,0.00180527,3949.2,3949.1,0.4216]
[1758899116321,0.00180527,3949.2,3949.1,0.6876]
[1758899117025,0.43480527,3949.2,3949.1,0.4216]
[1758899117222,0.43480527,3949.2,3949.1,0.266]
[1758899117420,0.43480527,3949.2,3948.7,0.45554]
[1758899117720,0.433,3949.1,3948.8,0.72153]
[1758899117918,0.433,3949.1,3948.5,3.38]
[1758899118123,0.00180527,3949.2,3947.8,0.00300007]
[1758899118124,3.66332,3948.9,3948.6,0.266]
[1758899118326,0.88853,3948.8,3948.0,3.38]
[1758899118627,0.433,3948.8,3948.1,0.266]
[1758899119214,3.2078,3948.9,3948.1,0.266]
[1758899119426,0.433,3948.8,3948.2,0.4216]
[1758899119615,0.45553,3948.8,3948.1,0.266]
[1758899119815,0.168,3949.0,3948.1,0.266]
[1758899119816,0.433,3948.3,3948.1,0.266]
[1758899120024,3.2078,3948.4,3948.0,0.4216]
[1758899120221,3.2078,3948.4,3948.1,0.266]
[1758899120620,3.6408,3948.9,3948.2,0.4216]
[1758899121316,3.2078,3948.9,3948.7,0.4216]
[1758899121529,0.433,3948.6,3948.1,0.4216]
[1758899121820,0.09597263,3948.8,3947.8,0.00300007]
[1758899121821,0.433,3948.3,3948.2,0.266]
[1758899122024,0.433,3948.3,3947.8,0.00300007]
[1758899122025,3.2078,3948.4,3947.8,0.00300007]
[1758899122228,0.52898857,3948.3,3947.8,0.00300007]
[1758899122419,3.2078,3948.4,3947.8,0.00300007]
[1758899122420,0.601,3948.0,3947.9,0.266]
[1758899123014,0.433,3947.9,3947.8,0.00300007]
[1758899123419,0.433,3947.9,3947.8,0.26900007]
[1758899123829,0.433,3947.9,3947.2,3.6294]
[1758899123830,0.433,3947.4,3947.2,3.2078]
[1758899124021,0.433,3947.9,3947.3,0.266]
[1758899124219,0.09600918,3947.8,3947.5,0.45568]
[1758899124415,0.09600918,3947.7,3947.6,0.87727]
[1758899124631,1.13887,3948.7,3947.6,0.87727]
[1758899124632,0.433,3948.4,3948.2,0.4556]
[1758899124925,3.2078,3948.5,3948.4,0.87718]
[1758899125829,3.2078,3948.9,3948.8,0.87713]
[1758899126028,0.09613296,3948.9,3948.8,1.14313]
[1758899126238,0.09613296,3948.9,3948.2,0.00276635]
[1758899126239,0.433,3948.8,3948.2,0.00276635]
[1758899126524,3.6408,3948.3,3948.2,0.00276635]
[1758899126719,3.73697167,3948.3,3948.2,0.00276635]
[1758899126919,0.433,3948.2,3947.2,3.6294]
[1758899127118,3.66344,3947.9,3947.3,0.136]
[1758899127323,0.09617167,3947.8,3947.4,0.45569]
[1758899127516,0.09617167,3947.7,3947.6,0.4216]
[1758899127724,0.433,3947.6,3947.2,0.45571]
[1758899127917,3.2078,3947.9,3947.3,0.266]
[1758899127918,0.433,3947.4,3947.3,0.266]
[1758899128124,0.433,3947.8,3947.5,0.4216]
[1758899128324,0.433,3947.6,3947.4,0.45569]
[1758899128522,0.09616325,3947.5,3947.2,0.00252269]
[1758899128830,0.52916325,3947.4,3947.3,0.266]
[1758899129027,0.09616325,3947.4,3947.2,0.00252269]
[1758899129328,0.433,3946.8,3946.5,39.505]
[1758899129528,3.2078,3947.4,3947.0,0.45574]
[1758899129726,0.52917369,3947.3,3947.1,1.14332]
[1758899129931,0.09617369,3947.2,3947.1,0.6876]
[1758899130126,0.09617369,3947.2,3946.6,0.4216]
[1758899130127,0.88873,3947.1,3946.6,0.4216]
[1758899130430,0.433,3946.7,3946.6,0.26897384]
[1758899130633,0.52917369,3946.7,3946.6,0.00297384]
[1758899130845,5.52917369,3946.7,3946.3,0.266]
[1758899131136,3.66361,3946.4,3946.3,0.266]
[1758899131438,3.30397369,3946.4,3946.3,0.266]
[1758899131629,3.30397369,3946.4,3946.2,0.266]
[1758899131933,0.52917369,3946.3,3946.2,0.2685037]
[1758899132132,0.52917369,3946.3,3945.3,0.87754]
[1758899132322,0.52917369,3946.3,3944.7,1.35965781]
[1758899132323,3.66372,3945.5,3945.0,0.45597]
[1758899132528,0.433,3945.3,3945.1,0.72195]
[1758899132839,0.52917369,3945.2,3944.9,0.45598]
[1758899133030,0.53541154,3945.1,3945.0,0.72196]
[1758899133234,0.433,3945.1,3945.0,0.72380189]
[1758899133732,3.6408,3945.5,3945.3,0.45593]
[1758899133937,0.433,3945.1,3945.0,0.00184189]
[1758899134136,3.74311225,3945.1,3945.0,0.00104189]
[1758899134327,3.74311225,3945.1,3943.8,3.2078]
[1758899134328,0.433,3944.8,3943.8,3.2078]
[1758899134527,0.433,3944.2,3943.9,0.45609]
[1758899134831,3.2078,3944.3,3944.2,0.87766]
[1758899135133,0.433,3944.8,3943.8,0.266]
[1758899135134,3.2078,3944.8,3944.7,0.4216]
[1758899135432,3.74281977,3944.8,3944.7,0.00287887]
[1758899135632,3.2078,3944.8,3944.7,0.69047887]
[1758899136224,3.6408,3944.8,3944.7,0.00287887]
[1758899136533,0.433,3944.8,3944.7,0.00287887]
[1758899137130,3.2078,3945.2,3944.8,0.45599]
[1758899137435,0.1656,3945.0,3944.7,0.00287887]
[1758899137739,3.612,3944.8,3944.7,0.00287887]
[1758899138330,4.06799,3944.8,3944.7,0.00287887]
[1758899138525,3.612,3944.8,3944.7,0.45888887]
[1758899138835,3.612,3944.8,3944.7,0.00287887]
[1758899139235,3.612,3944.8,3944.1,0.266]
[1758899139236,0.4042,3944.2,3944.1,0.266]
[1758899139830,0.62163,3944.5,3944.1,0.45607]
[1758899140339,4.06806,3944.2,3944.1,0.00318198]
[1758899141832,0.4042,3944.1,3943.6,0.45612]
[1758899142132,3.2078,3943.8,3943.7,0.4275]
[1758899142831,3.612,3943.8,3943.7,0.00181064]
[1758899143434,3.2078,3943.8,3943.7,0.00181064]
[1758899143635,3.2078,3943.8,3943.7,0.42931064]
[1758899144538,3.612,3943.8,3943.7,0.00181064]
[1758899144834,3.2078,3944.2,3943.7,0.42931064]
[1758899145032,3.2078,3943.8,3943.7,0.00181064]
[1758899145337,3.612,3943.8,3943.7,0.00181064]
[1758899146241,0.4042,3943.2,3942.9,0.232]
[1758899146434,4.61425,3943.3,3942.3,0.45628]
[1758899146630,3.2078,3943.2,3942.4,0.45627]
[1758899146830,0.1656,3943.0,3942.6,0.45625]
[1758899147035,0.4042,3942.9,3942.7,0.4275]
[1758899147231,0.4042,3942.8,3942.7,0.00324392]
[1758899147513,0.00244988,3942.9,3942.7,0.88698392]
[1758899147514,0.40664988,3942.9,3942.7,0.88698392]
[1758899147693,0.40664988,3942.9,3942.7,0.45948392]
[1758899147844,0.00244988,3942.9,3942.8,0.4275]
[1758899148241,0.00244988,3942.9,3942.8,5.4275]
[1758899148637,0.00244988,3942.9,3942.8,0.4275]
[1758899148838,0.4042,3942.8,3942.7,0.00324392]